bitfinex/quotes_ETHUSD_20250802
["timestamp","ask_amount","ask_price","bid_price","bid_amount"]
[1754107056586,0.001,3529.6,3529.5,17.01904832]
[1754107059499,0.001,3529.6,3529.5,17.50654832]
[1754107061726,0.001,3530.0,3529.6,3.0]
[1754107061928,0.001,3530.0,3529.9,11.33893989]
[1754107062082,0.001,3530.0,3529.9,15.67393989]
[1754107064222,0.001,3530.0,3529.9,16.16143989]
[1754107064424,0.934,3530.4,3530.3,11.19733989]
[1754107064591,0.4607,3530.4,3530.3,11.19733989]
[1754107064794,0.4607,3530.4,3530.3,12.45867388]
[1754107065195,0.934,3530.4,3530.3,12.45867388]
[1754107065605,0.1416,3531.0,3530.4,3.0]
[1754107066184,0.1416,3531.0,3530.5,0.1416]
[1754107066481,0.934,3530.9,3530.5,0.1416]
[1754107066682,0.934,3530.8,3530.5,0.1416]
[1754107066882,0.934,3530.7,3530.5,0.1416]
[1754107067103,0.934,3530.6,3530.5,0.1416]
[1754107080520,0.438,3530.7,3530.5,0.1416]
[1754107080719,0.4993,3530.7,3530.5,0.1416]
[1754107080920,0.9373,3530.6,3530.5,0.1416]
[1754107081427,0.438,3530.6,3530.5,1.38746739]
[1754107082529,0.9373,3530.6,3530.5,1.38746739]
[1754107082730,0.9373,3530.6,3530.5,0.1416]
[1754107083844,0.1416,3531.0,3530.5,0.1416]
[1754107084073,0.1416,3531.0,3530.9,8.19733989]
[1754107084282,0.1416,3531.0,3530.9,11.19733989]
[1754107084574,0.9373,3531.4,3531.0,3.0]
[1754107084749,0.1416,3531.7,3531.4,3.0]
[1754107085332,0.9373,3531.6,3531.4,3.0]
[1754107085532,0.9373,3531.5,3531.4,3.0]
[1754107085786,0.1416,3531.7,3531.4,3.0]
[1754107085945,0.9373,3531.5,3531.4,3.0]
[1754107092184,0.9373,3531.5,3530.6,0.1416]
[1754107092349,0.1416,3531.0,3530.5,8.33893989]
[1754107092553,0.9373,3531.0,3530.9,8.19733989]
[1754107092746,0.1416,3531.5,3530.9,8.33893989]
[1754107092950,0.9373,3531.4,3530.9,9.23420838]
[1754107093151,0.1416,3531.7,3531.3,8.19733989]
[1754107093372,0.9373,3531.6,3531.3,8.19733989]
[1754107093586,0.1416,3531.7,3531.3,8.19733989]
[1754107093785,0.001,3531.9,3531.3,8.19733989]
[1754107093989,0.438,3531.7,3531.4,0.1416]
[1754107094286,0.9373,3531.7,3531.4,0.1416]
[1754107094865,0.438,3531.7,3531.4,0.1416]
[1754107095660,0.6419,3531.9,3531.4,0.1416]
[1754107095866,0.438,3531.8,3531.4,0.1416]
[1754107096091,0.9373,3531.8,3531.4,0.1416]
[1754107096293,0.9373,3531.7,3531.4,0.1416]
[1754107096489,0.438,3531.7,3531.4,1.10621739]
[1754107096691,0.9373,3531.6,3531.4,0.96461739]
[1754107096897,0.4993,3531.6,3531.4,0.96461739]
[1754107097196,0.9373,3531.5,3531.4,0.96461739]
[1754107097394,0.9373,3531.5,3531.3,0.81973399]
[1754107097695,0.9373,3531.4,3530.7,4.331]
[1754107097857,0.9373,3531.3,3531.1,0.1416]
[1754107098054,0.9373,3531.2,3531.1,0.1416]
[1754107101162,0.9373,3531.2,3531.1,3.1416]
[1754107107822,0.4674,3531.2,3531.1,3.1416]
[1754107108112,0.9324,3531.2,3531.1,4.27549399]
[1754107110418,4.331,3531.5,3531.1,4.27549399]
[1754107110712,0.9324,3531.4,3531.1,4.27549399]
[1754107110877,0.9324,3531.3,3531.1,4.27549399]
[1754107111409,0.9324,3531.2,3531.1,4.27549399]
[1754107113303,0.465,3531.2,3531.1,4.27549399]
[1754107113810,0.1426,3531.6,3531.1,4.27549399]
[1754107114051,5.2624,3531.5,3531.1,4.27549399]
[1754107114320,0.001,3531.6,3531.4,8.19733989]
[1754107114707,0.001,3531.6,3531.4,8.67643989]
[1754107115111,0.001,3531.6,3531.4,8.81803989]
[1754107115406,0.001,3531.6,3531.4,8.67643989]
[1754107115606,0.001,3531.6,3531.5,1.61786333]
[1754107115823,0.001,3531.6,3531.5,1.13876333]
[1754107116204,0.001,3531.6,3531.5,1.1670799]
[1754107116406,0.001,3531.6,3531.5,1.13876333]
[1754107117828,0.001,3531.6,3531.5,4.6461799]
[1754107118184,0.001,3531.6,3531.5,4.1670799]
[1754107119527,0.001,3531.6,3531.5,4.13876333]
[1754107120826,0.001,3531.6,3531.5,0.1416]
[1754107120995,0.9334,3531.6,3531.5,0.1416]
[1754107121200,0.9334,3531.6,3530.9,3.0]
[1754107121385,5.2614,3531.5,3530.9,3.0]
[1754107121593,0.9324,3531.4,3530.9,3.0]
[1754107121793,0.9324,3531.3,3530.9,4.55263399]
[1754107122116,0.9324,3531.3,3530.9,1.55263399]
[1754107122316,0.9324,3531.2,3530.7,4.329]
[1754107122616,0.9324,3531.4,3530.9,3.0]
[1754107122836,5.2614,3531.4,3531.2,8.19733989]
[1754107123003,4.7964,3531.4,3531.2,8.19733989]
[1754107123201,0.465,3531.3,3531.2,8.19733989]
[1754107124029,0.9324,3531.3,3531.2,8.19733989]
[1754107124618,0.9324,3531.3,3530.8,8.63023989]
[1754107124930,0.9324,3531.2,3530.9,4.34383399]
[1754107125602,0.465,3531.1,3530.9,4.34383399]
[1754107126000,0.9324,3531.1,3530.9,4.34383399]
[1754107126634,0.4674,3531.0,3530.9,1.34383399]
[1754107126834,0.9324,3531.0,3530.9,1.34383399]
[1754107127199,0.465,3531.0,3530.9,1.34383399]
[1754107127605,0.9324,3531.2,3530.9,1.34383399]
[1754107127816,0.9334,3531.2,3530.9,1.34383399]
[1754107128231,0.466,3531.2,3530.8,3.0]
[1754107128429,0.466,3531.2,3530.8,3.4791]
[1754107128644,0.9334,3531.2,3530.8,3.4791]
[1754107128938,0.9324,3531.1,3530.8,3.0]
[1754107129233,0.9324,3531.0,3530.8,3.0]
[1754107129440,0.9324,3530.9,3530.8,3.0]
[1754107130329,0.465,3530.9,3530.8,3.0]
[1754107130832,0.9324,3530.9,3530.8,3.0]
[1754107131303,0.9324,3530.9,3530.8,3.1416]
[1754107137914,0.9324,3530.9,3530.0,8.19933989]
[1754107137915,0.465,3530.9,3530.0,8.19933989]
[1754107138111,0.1416,3530.7,3530.2,0.1416]
[1754107138344,0.4905,3530.9,3530.8,8.19733989]
[1754107138927,0.9202,3530.9,3530.8,8.19733989]
[1754107140229,5.2482,3530.9,3530.8,8.19733989]
[1754107140953,5.2482,3530.9,3530.5,8.33893989]
[1754107141251,0.9202,3530.8,3530.5,8.33893989]
[1754107141639,0.9202,3530.7,3530.5,8.33893989]
[1754107141834,0.9202,3530.6,3530.5,8.33893989]
[1754107142140,0.9202,3530.6,3530.5,11.33893989]
[1754107143449,0.1416,3531.0,3530.5,12.90563388]
[1754107143749,0.001,3531.2,3530.9,8.19733989]
[1754107144135,0.001,3531.2,3531.1,0.1416]
[1754107144451,0.001,3531.6,3531.1,0.02831978]
[1754107144632,0.001,3531.6,3531.5,11.19733989]
[1754107144828,0.001,3531.6,3531.5,15.52533989]
[1754107145039,0.001,3531.6,3531.5,16.00193989]
[1754107145221,0.001,3531.9,3531.6,3.0]
[1754107145428,0.001,3531.9,3531.8,3.0]
[1754107145934,0.4915,3531.9,3531.8,3.0]
[1754107146337,0.9212,3531.9,3531.6,7.328]
[1754107146530,0.001,3531.9,3531.6,7.328]
[1754107146855,0.9202,3531.8,3531.6,7.328]
[1754107147824,0.4297,3531.8,3531.6,7.328]
[1754107148037,0.001,3531.9,3531.6,8.88053399]
[1754107148245,0.4307,3531.9,3531.6,8.88053399]
[1754107148441,0.4307,3531.9,3531.6,7.328]
[1754107148655,0.9202,3531.8,3531.6,7.328]
[1754107148828,0.9202,3531.7,3531.6,3.0]
[1754107149750,0.9202,3531.7,3530.9,8.19733989]
[1754107149921,0.4915,3531.8,3531.4,3.0]
[1754107150121,0.001,3531.8,3531.7,8.19733989]
[1754107150323,0.001,3531.8,3531.7,11.67393989]
[1754107150557,0.001,3531.8,3531.7,11.19733989]
[1754107151854,0.001,3531.8,3531.7,11.67393989]
[1754107152027,0.001,3531.8,3531.7,13.27403388]
[1754107154245,0.001,3531.8,3531.7,12.79743388]
[1754107154566,0.001,3531.8,3531.7,12.93903388]
[1754107156846,0.9212,3531.8,3531.7,11.33893989]
[1754107158738,0.001,3531.8,3531.7,11.33893989]
[1754107160654,0.001,3531.8,3531.7,11.81553989]
[1754107160875,0.001,3531.8,3531.7,11.33893989]
[1754107163895,0.001,3531.8,3531.7,11.81863989]
[1754107164084,0.001,3531.8,3531.7,13.43320388]
[1754107164883,0.001,3531.8,3531.7,12.95350388]
[1754107165265,0.001,3531.8,3531.7,13.43320388]
[1754107165471,0.001,3531.8,3531.7,12.95350388]
[1754107166796,0.001,3531.8,3531.7,13.43320388]
[1754107167702,0.001,3531.8,3531.7,12.95350388]
[1754107168704,0.9481,3531.8,3531.7,12.95350388]
[1754107168863,0.9481,3531.8,3531.7,15.66493989]
[1754107169067,0.9481,3531.8,3531.7,11.33893989]
[1754107169267,0.9481,3531.8,3531.7,15.66493989]
[1754107169504,0.001,3531.8,3531.7,11.33893989]
[1754107169804,0.001,3531.8,3531.7,15.66493989]
[1754107170231,0.001,3531.8,3531.7,17.23143388]
[1754107171103,0.001,3531.8,3531.7,17.71113388]
[1754107171425,0.9481,3531.8,3531.7,3.0]
[1754107171720,0.9481,3531.8,3531.7,3.1416]
[1754107171721,0.4622,3531.8,3531.7,3.1416]
[1754107173804,0.9481,3531.8,3531.7,3.1416]
[1754107178210,0.001,3531.8,3531.7,3.1416]
[1754107178415,0.001,3531.8,3531.7,4.70829399]
[1754107178920,0.9481,3531.8,3531.7,3.1416]
[1754107182594,0.4622,3531.8,3531.7,3.1416]
[1754107182799,0.001,3531.8,3531.7,3.1416]
[1754107183885,0.001,3531.8,3531.7,3.6213]
[1754107184212,0.001,3531.8,3531.7,3.1416]
[1754107185017,0.001,3531.8,3531.7,4.75626399]
[1754107185223,0.001,3531.8,3531.7,5.23596399]
[1754107185435,0.001,3531.8,3531.7,5.26427896]
[1754107185586,0.001,3531.8,3531.7,5.23596399]
[1754107186118,0.001,3531.8,3531.7,5.34941299]
[1754107186428,0.001,3531.8,3531.7,4.86971299]
[1754107186813,0.001,3531.8,3531.7,5.34941299]
[1754107187822,0.001,3531.8,3531.7,4.86971299]
[1754107188022,0.001,3531.9,3531.7,5.34941299]
[1754107188223,0.001,3531.9,3531.8,9.16200618]
[1754107188416,0.001,3531.9,3531.8,9.61339201]
[1754107188815,0.001,3531.9,3531.8,9.72683201]
[1754107191336,0.001,3532.0,3531.9,3.0]
[1754107191636,0.001,3532.0,3531.9,11.71315326]
[1754107191844,0.001,3532.0,3531.9,13.7786138]
[1754107192344,0.001,3532.8,3531.9,16.12243829]
[1754107192639,0.001,3532.8,3532.6,3.0]
[1754107192938,0.001,3532.8,3532.7,7.4666]
[1754107193127,0.001,3532.8,3532.7,9.03299399]
[1754107194244,0.001,3532.8,3532.7,9.52049399]
[1754107196228,0.001,3532.8,3532.7,9.63390099]
[1754107196765,0.001,3532.8,3532.7,9.14640099]
[1754107199079,0.001,3532.8,3532.7,9.63390099]
[1754107199372,0.001,3532.8,3532.7,9.14640099]
[1754107200979,0.9261,3532.8,3532.7,4.82140099]
[1754107201138,0.9261,3532.8,3532.7,7.579007]
[1754107203942,0.4445,3532.8,3532.7,7.579007]
[1754107204130,0.001,3532.8,3532.7,7.579007]
[1754107205388,0.001,3532.8,3532.7,8.066507]
[1754107205670,0.9261,3532.8,3532.7,7.579007]
[1754107205876,0.9261,3532.8,3532.7,3.255007]
[1754107206059,0.9261,3532.8,3532.7,7.579007]
[1754107206240,0.001,3532.8,3532.7,7.579007]
[1754107207538,0.4445,3532.8,3532.7,15.77634689]
[1754107207758,0.9261,3532.8,3532.7,15.77634689]
[1754107208274,0.9261,3532.8,3532.5,12.52033989]
[1754107208471,0.9251,3532.7,3532.6,3.1416]
[1754107209638,0.001,3532.8,3532.6,4.45498734]
[1754107209940,0.001,3532.8,3532.7,7.35130696]
[1754107210180,0.001,3532.8,3532.7,7.323]
[1754107211183,0.001,3533.0,3532.8,3.0]
[1754107211473,0.001,3533.0,3532.8,3.4875]
[1754107211679,0.001,3533.0,3532.8,5.56208887]
[1754107211878,0.001,3533.2,3532.8,5.53378272]
[1754107212078,0.001,3533.2,3533.1,11.19733989]
[1754107212283,0.001,3533.2,3533.1,15.52033989]
[1754107212974,0.001,3533.2,3533.1,15.66193989]
[1754107213176,0.001,3533.2,3533.1,17.48151215]
[1754107216382,0.001,3533.2,3533.1,17.92501215]
[1754107218787,0.4445,3533.2,3533.1,17.92501215]
[1754107218994,0.9261,3533.2,3533.1,17.92501215]
[1754107219485,0.9261,3533.2,3533.1,13.60201215]
[1754107219780,0.9261,3533.2,3533.1,15.66193989]
[1754107221294,0.001,3533.2,3533.1,15.66193989]
[1754107223791,0.9177,3533.2,3533.1,15.66193989]
[1754107224991,0.9177,3533.2,3533.1,11.33893989]
[1754107225200,0.9177,3533.2,3533.1,15.66193989]
[1754107226964,0.37993625,3533.2,3533.1,15.66093989]
[1754107228808,0.001,3533.3,3533.2,3.0]
[1754107228974,0.4529,3533.3,3533.2,4.86609399]
[1754107229296,0.9177,3533.3,3533.2,4.86609399]
[1754107231089,0.9177,3533.3,3533.2,3.0]
[1754107232766,0.9177,3533.3,3533.2,7.322]
[1754107232993,0.9177,3533.3,3532.6,4.4636]
[1754107233195,0.1416,3533.2,3532.6,4.4636]
[1754107233366,1.0583,3533.2,3532.7,3.0]
[1754107233561,0.4648,3533.1,3532.7,3.0]
[1754107233799,0.9167,3533.1,3532.7,3.0]
[1754107234099,0.9167,3533.0,3532.7,3.0]
[1754107234308,0.9167,3532.9,3532.7,3.0]
[1754107234608,0.9167,3532.8,3532.7,3.0]
[1754107238069,0.9167,3532.8,3532.6,3.1416]
[1754107238271,0.9167,3532.7,3532.6,7.4636]
[1754107238672,0.1426,3533.2,3532.6,7.4636]
[1754107238910,0.9167,3533.1,3532.9,8.19733989]
[1754107239208,0.9167,3533.0,3532.9,11.19733989]
[1754107243485,0.4519,3533.0,3532.9,11.19733989]
[1754107243686,0.9177,3533.2,3532.9,11.19733989]
[1754107244110,0.001,3533.2,3533.0,3.0]
[1754107244311,0.001,3533.2,3533.1,0.1416]
[1754107244515,0.001,3533.2,3533.1,8.062]
[1754107244812,0.001,3533.2,3533.1,8.5184]
[1754107244979,0.001,3533.2,3533.1,10.34658339]
[1754107245384,0.001,3533.2,3533.1,9.89018339]
[1754107246083,0.001,3533.2,3533.1,10.34658339]
[1754107246685,0.001,3533.2,3533.1,9.89018339]
[1754107248100,0.001,3533.2,3533.1,9.43338339]
[1754107250591,0.001,3533.2,3533.1,9.89018339]
[1754107250795,0.001,3533.2,3533.1,9.43338339]
[1754107254050,0.001,3533.2,3533.1,10.33178339]
[1754107257852,0.001,3533.2,3533.1,9.88858339]
[1754107258554,0.001,3533.2,3533.1,9.43538339]
[1754107259429,0.8916,3533.2,3533.1,5.11338339]
[1754107259656,0.453,3533.2,3533.1,9.43438339]
[1754107259820,0.8916,3533.2,3533.1,9.43438339]
[1754107260151,0.8916,3533.2,3533.1,3.2852]
[1754107260352,0.8916,3533.2,3533.1,7.6062]
[1754107260590,0.8916,3533.2,3533.1,3.1436]
[1754107260856,1.0332,3533.2,3533.1,0.002]
[1754107268185,0.5946,3533.2,3533.1,0.002]
[1754107268390,1.0332,3533.2,3533.1,8.19933989]
[1754107268553,1.0332,3533.2,3533.1,11.19933989]
[1754107269237,1.0332,3533.2,3533.1,3.002]
[1754107269465,1.0332,3533.2,3533.1,0.002]
[1754107270138,0.001,3533.2,3533.1,0.002]
[1754107270389,0.8916,3533.2,3533.1,0.002]
[1754107271178,0.92007072,3533.2,3533.1,0.002]
[1754107271383,0.8916,3533.2,3533.1,0.002]
[1754107277763,0.001,3533.2,3533.1,8.19933989]
[1754107277989,0.8916,3533.2,3533.1,0.002]
[1754107278890,0.453,3533.2,3533.1,0.002]
[1754107279089,0.8916,3533.2,3533.1,0.002]
[1754107280183,1.0332,3533.2,3533.1,0.002]
[1754107281801,0.1426,3533.2,3533.1,0.002]
[1754107282301,0.001,3533.2,3533.1,1.17160399]
[1754107282596,0.001,3533.2,3533.1,1.66830399]
[1754107284078,0.001,3533.2,3533.1,2.26260399]
[1754107287304,0.001,3533.2,3533.1,1.31320399]
[1754107287475,0.001,3533.2,3533.1,0.1436]
[1754107288971,0.9313,3533.2,3533.1,0.002]
[1754107292803,1.0729,3533.2,3533.1,0.002]
[1754107306393,0.1426,3533.2,3533.1,0.002]
[1754107306619,0.6013,3533.2,3533.1,0.002]
[1754107306818,1.0729,3533.2,3533.1,0.002]
[1754107307328,0.6013,3533.2,3533.1,0.002]
[1754107309120,1.0729,3533.2,3533.1,0.002]
[1754107309931,0.1426,3533.2,3533.1,0.002]
[1754107310727,0.6013,3533.2,3533.1,0.002]
[1754107311634,1.0442,3533.2,3533.1,0.002]
[1754107314331,0.1426,3533.2,3533.1,0.002]
[1754107314534,0.5989,3533.2,3533.1,0.002]
[1754107314722,1.0418,3533.2,3533.1,0.002]
[1754107319144,1.07027072,3533.2,3533.1,0.002]
[1754107320244,1.0418,3533.2,3533.1,0.002]
[1754107320541,1.07027072,3533.2,3533.1,0.002]
[1754107321840,1.0418,3533.2,3533.1,0.002]
[1754107323642,1.43194059,3533.2,3533.1,0.002]
[1754107324754,1.0418,3533.2,3533.1,0.002]
[1754107327028,1.5918,3533.2,3533.1,0.002]
[1754107327542,1.62027072,3533.2,3533.1,0.002]
[1754107328915,5.94127072,3533.2,3533.1,0.002]
[1754107329219,5.9128,3533.2,3533.1,0.002]
[1754107329529,6.50418,3533.2,3533.1,0.002]
[1754107332156,9.33447548,3533.2,3533.1,0.002]
[1754107332355,6.50418,3533.2,3533.1,0.002]
[1754107332649,9.33447548,3533.2,3533.1,0.002]
[1754107334234,11.03647548,3533.2,3533.1,0.002]
[1754107335354,8.20518,3533.2,3533.1,0.002]
[1754107336861,11.03547548,3533.2,3533.1,0.002]
[1754107340368,8.20518,3533.2,3533.1,0.002]
[1754107340530,11.03547548,3533.2,3533.1,0.002]
[1754107341972,1.74028,3533.2,3533.1,0.002]
[1754107342175,5.4689,3533.2,3533.1,0.002]
[1754107342576,5.9007,3533.2,3533.1,0.002]
[1754107344479,12.8947,3533.2,3533.1,0.002]
[1754107345262,15.72499548,3533.2,3533.1,0.002]
[1754107346167,17.42699548,3533.2,3533.1,0.002]
[1754107346377,19.45281083,3533.2,3533.1,0.002]
[1754107350494,16.62251535,3533.2,3533.1,0.002]
[1754107350795,19.45281083,3533.2,3533.1,0.002]
[1754107351386,16.62251535,3533.2,3533.1,0.002]
[1754107351604,15.73441535,3533.2,3533.1,0.002]
[1754107352287,22.73441535,3533.2,3533.1,0.002]
[1754107352478,23.19501535,3533.2,3533.1,0.002]
[1754107354001,18.87501535,3533.2,3533.1,0.002]
[1754107354203,16.19501535,3533.2,3533.1,0.002]
[1754107358226,16.19401535,3533.2,3533.1,0.002]
[1754107359273,15.73341535,3533.2,3533.1,0.002]
[1754107359470,14.03141535,3533.2,3533.1,0.002]
[1754107359670,17.75411083,3533.2,3533.1,0.002]
[1754107361209,19.45611083,3533.2,3533.1,0.002]
[1754107366534,16.19401535,3533.2,3533.1,0.002]
[1754107366737,15.73341535,3533.2,3533.1,0.002]
[1754107367724,22.73341535,3533.2,3533.1,0.002]
[1754107369925,18.41441535,3533.2,3533.1,0.002]
[1754107370224,22.73341535,3533.2,3533.1,0.002]
[1754107370893,18.863,3533.2,3533.1,0.002]
[1754107371305,19.3236,3533.2,3533.1,0.002]
[1754107372927,12.3236,3533.2,3533.1,0.002]
[1754107373625,11.863,3533.2,3533.1,0.002]
[1754107373824,0.001,3533.2,3533.1,0.9316]
[1754107374142,4.319,3533.2,3533.1,0.9316]
[1754107377035,0.001,3533.2,3533.1,1.84449399]
[1754107377255,4.319,3533.2,3533.1,4.84449399]
[1754107378239,0.001,3533.2,3533.1,4.84449399]
[1754107380514,0.001,3533.2,3533.1,13.04183388]
[1754107380713,0.001,3533.2,3533.1,12.57473388]
[1754107381041,0.001,3533.2,3533.1,12.12893989]
[1754107382416,0.001,3533.2,3533.1,0.002]
[1754107382636,1.11967072,3533.2,3533.1,0.002]
[1754107383550,1.0912,3533.2,3533.1,0.002]
[1754107384326,0.6416,3533.2,3533.1,0.002]
[1754107384526,0.1426,3533.2,3533.1,3.9316]
[1754107384738,4.4596,3533.2,3533.1,5.14449399]
[1754107385631,4.318,3533.2,3533.1,5.14449399]
[1754107388461,0.001,3533.2,3533.1,5.14449399]
[1754107388663,0.001,3533.2,3533.1,0.002]
[1754107388862,0.1426,3533.2,3533.1,0.002]
[1754107389055,0.6416,3533.2,3533.1,0.002]
[1754107389256,0.1426,3533.2,3533.1,0.002]
[1754107390331,1.0912,3533.2,3533.1,0.002]
[1754107390763,0.1426,3533.2,3533.1,0.002]
[1754107391072,1.0912,3533.2,3533.1,0.002]
[1754107393641,5.4072,3533.2,3533.1,0.002]
[1754107398261,5.94802,3533.2,3533.1,0.002]
[1754107399456,5.94702,3533.2,3533.1,0.002]
[1754107401389,1.63202,3533.2,3533.1,0.002]
[1754107401688,5.43467072,3533.2,3533.1,0.002]
[1754107402090,5.4062,3533.2,3533.1,0.002]
[1754107402259,5.43467072,3533.2,3533.1,0.002]
[1754107404385,1.11967072,3533.2,3533.1,0.002]
[1754107404572,5.43467072,3533.2,3533.1,0.002]
[1754107404773,5.97823779,3533.2,3533.1,0.002]
[1754107404973,5.94976707,3533.2,3533.1,0.002]
[1754107410386,4.9566,3533.2,3533.1,0.002]
[1754107413157,4.4576,3533.2,3533.1,0.002]
[1754107413384,4.4576,3533.2,3533.1,8.66013989]
[1754107413684,4.4576,3533.2,3533.1,9.12103989]
[1754107413872,4.4576,3533.2,3533.1,8.66013989]
[1754107414284,4.4576,3533.2,3533.1,9.12103989]
[1754107416107,4.316,3533.2,3533.1,13.03314388]
[1754107417475,0.001,3533.2,3533.1,13.03314388]
[1754107419011,0.001,3533.2,3533.1,13.17474388]
[1754107423529,0.001,3533.6,3533.2,3.0]
[1754107423730,0.001,3533.6,3533.5,11.19733989]
[1754107423931,0.001,3533.6,3533.5,11.33893989]
[1754107424208,0.001,3533.6,3533.5,12.26063989]
[1754107424421,0.001,3533.6,3533.5,13.11108989]
[1754107424935,0.001,3533.6,3533.5,17.42408989]
[1754107425114,0.4595,3534.5,3533.5,17.42408989]
[1754107425115,4.313,3534.4,3533.6,3.0]
[1754107425318,4.9392,3534.4,3534.1,3.0]
[1754107427635,4.4546,3534.4,3534.1,3.0]
[1754107427841,4.4546,3534.4,3534.1,3.4608]
[1754107428004,4.4546,3534.4,3534.2,2.11816399]
[1754107428210,0.4846,3534.7,3534.2,2.11816399]
[1754107428449,4.312,3534.9,3534.2,2.11816399]
[1754107428450,4.312,3534.9,3534.6,3.0]
[1754107428632,0.4595,3534.7,3534.6,3.0]
[1754107428944,0.6011,3534.7,3534.6,3.0]
[1754107429112,1.0857,3534.7,3534.6,3.0]
[1754107429650,5.3977,3534.7,3534.6,3.0]
[1754107431935,4.4536,3534.7,3534.6,3.0]
[1754107432244,4.4536,3534.7,3534.6,4.20476819]
[1754107432443,4.9167,3534.7,3534.6,4.20476819]
[1754107432814,0.1416,3534.7,3534.6,4.20476819]
[1754107433053,4.4536,3534.7,3534.6,4.20476819]
[1754107434048,5.3516,3534.7,3534.6,4.20476819]
[1754107434220,5.3516,3534.7,3534.6,3.0]
[1754107434938,5.3516,3534.7,3534.5,0.850342]
[1754107435249,0.898,3534.6,3534.1,3.0]
[1754107435421,0.1416,3534.5,3534.3,0.850342]
[1754107435617,0.4631,3534.9,3534.3,3.850342]
[1754107435824,0.1416,3534.7,3534.4,1.25075819]
[1754107436319,0.6047,3534.7,3534.4,1.25075819]
[1754107437430,0.6047,3534.7,3534.5,0.850305]
[1754107438239,0.4631,3534.6,3534.5,0.850305]
[1754107438575,0.5765,3534.7,3534.5,0.850305]
[1754107438721,1.0396,3534.7,3534.5,0.850305]
[1754107440630,1.0396,3534.7,3534.5,2.24029531]
[1754107441529,1.0396,3534.7,3534.3,3.0]
[1754107441850,0.4631,3534.6,3534.3,3.0]
[1754107442062,4.311,3534.5,3534.3,3.0]
[1754107442649,4.311,3534.5,3534.4,0.850305]
[1754107443355,4.31,3534.5,3534.4,0.850305]
[1754107443554,4.7731,3534.5,3534.4,0.850305]
[1754107443952,5.3496,3534.5,3533.9,0.1416]
[1754107444171,0.92647072,3534.4,3534.0,0.850389]
[1754107444486,0.1416,3534.1,3533.6,8.33893989]
[1754107444788,5.208,3534.0,3533.7,3.850455]
[1754107444995,0.898,3533.9,3533.7,3.850455]
[1754107445354,0.4631,3533.8,3533.7,3.850455]
[1754107445592,0.4631,3533.8,3533.7,5.11538449]
[1754107445780,0.898,3533.8,3533.7,3.0]
[1754107448251,0.898,3533.8,3533.2,0.4599]
[1754107448252,0.898,3533.8,3533.3,3.0]
[1754107448538,5.208,3533.7,3533.5,0.850532]
[1754107448668,5.208,3533.7,3533.6,11.19733989]
[1754107448990,4.7731,3533.7,3533.6,11.19733989]
[1754107449154,4.7731,3533.7,3533.6,11.19933989]
[1754107449501,5.208,3533.7,3533.6,11.19933989]
[1754107449801,5.208,3533.7,3533.6,3.002]
[1754107461006,4.7731,3533.7,3533.6,3.002]
[1754107461208,5.208,3533.7,3533.6,3.002]
[1754107461961,0.1416,3533.8,3533.7,3.0]
[1754107462162,4.31,3533.8,3533.7,0.9315]
[1754107463108,4.31,3533.8,3533.7,0.4769]
[1754107463513,4.31,3533.8,3533.7,0.9315]
[1754107464314,4.31,3533.8,3533.7,1.781996]
[1754107464495,4.31,3533.8,3533.7,3.20628299]
[1754107465688,4.31,3533.8,3533.7,2.75168299]
[1754107469420,0.1416,3534.0,3533.7,2.27478299]
[1754107469629,4.309,3533.9,3533.7,2.75168299]
[1754107469922,0.1416,3534.0,3533.9,3.0]
[1754107470125,4.4506,3534.0,3533.9,3.0]
[1754107471962,4.9357,3534.0,3533.9,3.0]
[1754107472665,5.3742,3534.0,3533.6,0.002]
[1754107472966,1.0652,3533.9,3533.6,0.002]
[1754107473122,0.9236,3533.9,3533.6,0.002]
[1754107473320,0.1416,3533.7,3533.6,3.002]
[1754107473518,4.4506,3533.7,3533.6,4.20699199]
[1754107473723,4.9357,3533.7,3533.6,4.20699199]
[1754107479522,4.4506,3533.9,3533.6,4.68389199]
[1754107479815,4.308,3533.8,3533.7,1.34774319]
[1754107482413,4.308,3533.8,3533.7,1.82464319]
[1754107482634,4.308,3533.8,3533.7,1.34774319]
[1754107482830,4.308,3533.8,3533.7,2.19823819]
[1754107486414,4.7931,3533.8,3533.7,2.19823819]
[1754107486633,5.2316,3533.8,3533.7,2.19823819]
[1754107487924,4.7931,3533.8,3533.7,2.19823819]
[1754107488537,4.308,3533.8,3533.7,2.19823819]
[1754107489248,4.7931,3533.8,3533.7,2.19823819]
[1754107490045,4.7921,3533.8,3533.7,2.19823819]
[1754107490360,5.2306,3533.8,3533.7,2.19823819]
[1754107490531,0.9236,3533.8,3533.7,2.19823819]
[1754107490729,5.2306,3533.8,3533.7,2.19823819]
[1754107491726,5.2151,3533.8,3533.7,0.850495]
[1754107497854,5.2151,3533.8,3533.6,0.002]
[1754107498194,1.0497,3533.7,3533.6,0.852573]
[1754107498803,1.0497,3533.7,3533.6,0.002]
[1754107500500,1.07817072,3533.7,3533.6,0.002]
[1754107500780,1.58831707,3533.7,3533.6,0.002]
[1754107500982,1.61678779,3533.7,3533.6,0.002]
[1754107501373,2.16678779,3533.7,3533.6,0.002]